[Event "Titled Tuesday Blitz August 09 Early 2022"]
[White "Shpanko, Nadiia"]
[Black "Hoffmann, Asa"]
[WhiteFideId "14132400"]
[BlackFideId "2001470"]
[WhiteElo "2139"]
[BlackElo "2117"]
[Result "1-0"]
[Round "04"]
[TimeControl "180+1"]
[Date "2022.08.09"]
[WhiteClock "0:00:18"]
[BlackClock "0:00:06"]

1. c4 {[%clk 0:03:00]}  Nf6 {[%clk 0:02:58]} 2. Nc3 {[%clk 0:03:00]}  d6 {[%clk 0:02:57]} 3. Nf3 {[%clk 0:03:00]}  e5 {[%clk 0:02:55]} 4. d3 {[%clk 0:02:59]}  Be7 {[%clk 0:02:52]} 5. g3 {[%clk 0:03:00]}  c6 {[%clk 0:02:52]} 6. Bg2 {[%clk 0:03:00]}  O-O {[%clk 0:02:50]} 7. O-O {[%clk 0:03:00]}  h6 {[%clk 0:02:50]} 8. Qc2 {[%clk 0:02:58]}  Be6 {[%clk 0:02:49]} 9. b3 {[%clk 0:02:57]}  Qd7 {[%clk 0:02:49]} 10. d4 {[%clk 0:02:56]}  exd4 {[%clk 0:02:40]} 11. Nxd4 {[%clk 0:02:56]}  Bh3 {[%clk 0:02:39]} 12. Rd1 {[%clk 0:02:48]}  Bxg2 {[%clk 0:02:38]} 13. Kxg2 {[%clk 0:02:49]}  Na6 {[%clk 0:02:36]} 14. Ba3 {[%clk 0:02:47]}  Rfe8 {[%clk 0:02:36]} 15. Nf5 {[%clk 0:02:46]}  c5 {[%clk 0:02:20]} 16. Nb5 {[%clk 0:02:33]}  d5 {[%clk 0:02:13]} 17. e3 {[%clk 0:02:09]}  Bf8 {[%clk 0:02:07]} 18. Nc3 {[%clk 0:02:03]}  d4 {[%clk 0:02:01]} 19. exd4 {[%clk 0:02:02]}  cxd4 {[%clk 0:02:00]} 20. Bxf8 {[%clk 0:02:01]}  Qc6+ {[%clk 0:01:53]} 21. Kg1 {[%clk 0:02:00]}  Rxf8 {[%clk 0:01:31]} 22. Nxd4 {[%clk 0:01:59]}  Qc5 {[%clk 0:01:24]} 23. Ne4 {[%clk 0:01:58]}  Nxe4 {[%clk 0:01:22]} 24. Qxe4 {[%clk 0:01:59]}  Rab8 {[%clk 0:01:14]} 25. Nf5 {[%clk 0:01:57]}  Kh8 {[%clk 0:00:58]} 26. Qg4 {[%clk 0:01:48]}  Rg8 {[%clk 0:00:57]} 27. Rd7 {[%clk 0:01:46]}  Nb4 {[%clk 0:00:52]} 28. Rxf7 {[%clk 0:01:27]}  Nd3 {[%clk 0:00:49]} 29. Qd4 {[%clk 0:01:21]}  Qxd4 {[%clk 0:00:45]} 30. Nxd4 {[%clk 0:01:22]}  Rgd8 {[%clk 0:00:43]} 31. Ne6 {[%clk 0:01:20]}  Rd6 {[%clk 0:00:42]} 32. Nf4 {[%clk 0:01:12]}  Nxf4 {[%clk 0:00:40]} 33. Rxf4 {[%clk 0:01:13]}  Rd2 {[%clk 0:00:40]} 34. Re1 {[%clk 0:01:07]}  Rxa2 {[%clk 0:00:38]} 35. Re7 {[%clk 0:01:07]}  Rb2 {[%clk 0:00:37]} 36. Rff7 {[%clk 0:00:58]}  Rxb3 {[%clk 0:00:34]} 37. Rxg7 {[%clk 0:00:58]}  a5 {[%clk 0:00:32]} 38. Rh7+ {[%clk 0:00:55]}  Kg8 {[%clk 0:00:29]} 39. Reg7+ {[%clk 0:00:52]}  Kf8 {[%clk 0:00:29]} 40. Rc7 {[%clk 0:00:49]}  Kg8 {[%clk 0:00:29]} 41. Rxh6 {[%clk 0:00:50]}  a4 {[%clk 0:00:29]} 42. Rch7 {[%clk 0:00:47]}  Rf8 {[%clk 0:00:25]} 43. Rh5 {[%clk 0:00:34]}  Rb1+ {[%clk 0:00:22]} 44. Kg2 {[%clk 0:00:34]}  Rb2 {[%clk 0:00:22]} 45. Rh8+ {[%clk 0:00:33]}  Kg7 {[%clk 0:00:22]} 46. Rxf8 {[%clk 0:00:29]}  Kxf8 {[%clk 0:00:21]} 47. Ra5 {[%clk 0:00:29]}  Rb4 {[%clk 0:00:18]} 48. c5 {[%clk 0:00:29]}  Kf7 {[%clk 0:00:15]} 49. h4 {[%clk 0:00:27]}  Kg6 {[%clk 0:00:15]} 50. Kh3 {[%clk 0:00:26]}  Rc4 {[%clk 0:00:14]} 51. f3 {[%clk 0:00:24]}  Rc3 {[%clk 0:00:12]} 52. Rxa4 {[%clk 0:00:22]}  Rxc5 {[%clk 0:00:11]} 53. Rb4 {[%clk 0:00:20]}  b5 {[%clk 0:00:11]} 54. g4 {[%clk 0:00:20]}  Kh6 {[%clk 0:00:10]} 55. Kg3 {[%clk 0:00:20]}  Kg6 {[%clk 0:00:10]} 56. h5+ {[%clk 0:00:19]}  Kg5 {[%clk 0:00:09]} 57. f4+ {[%clk 0:00:20]}  Kh6 {[%clk 0:00:09]} 58. Kh4 {[%clk 0:00:20]}  Kg7 {[%clk 0:00:09]} 59. g5 {[%clk 0:00:21]}  Kf7 {[%clk 0:00:08]} 60. Kg4 {[%clk 0:00:21]}  Kg7 {[%clk 0:00:08]} 61. Re4 {[%clk 0:00:19]}  Kf7 {[%clk 0:00:08]} 62. g6+ {[%clk 0:00:19]}  Kf6 {[%clk 0:00:08]} 63. Rd4 {[%clk 0:00:19]}  Rc4 {[%clk 0:00:07]} 64. Rd6+ {[%clk 0:00:18]}  Kg7 {[%clk 0:00:07]} 65. Rb6 {[%clk 0:00:18]}  b4 {[%clk 0:00:07]} 66. Kg5 {[%clk 0:00:18]}  Rc5+ {[%clk 0:00:06]} 67. f5 {[%clk 0:00:19]}  Rc7 {[%clk 0:00:06]} 68. h6+ {[%clk 0:00:19]}  Kf8 {[%clk 0:00:06]} 69. Kf6 {[%clk 0:00:19]}  Ke8 {[%clk 0:00:06]} 70. h7 {[%clk 0:00:19]}  Rc6+ {[%clk 0:00:06]} 71. Rxc6 {[%clk 0:00:18]} 1-0


[Site "https://www.chess.com"]

[Event "Titled Tuesday Blitz August 09 Early 2022"]
[White "Shuvalov, Evgenij"]
[Black "Large, Peter G"]
[WhiteFideId "4187237"]
[BlackFideId "400866"]
[WhiteElo "2058"]
[BlackElo "2064"]
[Result "1-0"]
[Round "04"]
[TimeControl "180+1"]
[Date "2022.08.09"]
[WhiteClock "0:01:38"]
[BlackClock "0:00:19"]

1. Nf3 {[%clk 0:02:54]}  e6 {[%clk 0:02:59]} 2. c4 {[%clk 0:02:54]}  Nf6 {[%clk 0:02:59]} 3. g3 {[%clk 0:02:54]}  b6 {[%clk 0:02:59]} 4. Bg2 {[%clk 0:02:54]}  Bb7 {[%clk 0:02:59]} 5. O-O {[%clk 0:02:54]}  c5 {[%clk 0:03:00]} 6. Nc3 {[%clk 0:02:54]}  a6 {[%clk 0:02:56]} 7. d4 {[%clk 0:02:54]}  cxd4 {[%clk 0:02:56]} 8. Qxd4 {[%clk 0:02:54]}  Nc6 {[%clk 0:02:51]} 9. Qf4 {[%clk 0:02:52]}  Ne7 {[%clk 0:02:51]} 10. Rd1 {[%clk 0:02:48]}  Ng6 {[%clk 0:02:50]} 11. Qd2 {[%clk 0:02:48]}  Rc8 {[%clk 0:02:49]} 12. b3 {[%clk 0:02:47]}  d6 {[%clk 0:02:36]} 13. Ba3 {[%clk 0:02:37]}  d5 {[%clk 0:01:56]} 14. Bxf8 {[%clk 0:02:36]}  Rxf8 {[%clk 0:01:56]} 15. cxd5 {[%clk 0:02:30]}  Nxd5 {[%clk 0:01:56]} 16. Nxd5 {[%clk 0:02:29]}  Bxd5 {[%clk 0:01:48]} 17. Qe3 {[%clk 0:02:15]}  f6 {[%clk 0:00:54]} 18. Ng5 {[%clk 0:01:50]}  Ne5 {[%clk 0:00:24]} 19. Nxe6 {[%clk 0:01:43]}  Bxe6 {[%clk 0:00:19]} 20. Rxd8+ {[%clk 0:01:42]}  Rxd8 {[%clk 0:00:19]} 21. f4 {[%clk 0:01:38]} 1-0


[Site "https://www.chess.com"]

[Event "Titled Tuesday Blitz August 09 Early 2022"]
[White "Skliarov, Viktor"]
[Black "Ismayil, Malak"]
[WhiteFideId "14106736"]
[BlackFideId "13412604"]
[WhiteElo "2257"]
[BlackElo "1879"]
[Result "1-0"]
[Round "04"]
[TimeControl "180+1"]
[Date "2022.08.09"]
[WhiteClock "0:00:33"]
[BlackClock "0:00:16"]

1. e4 {[%clk 0:03:00]}  e5 {[%clk 0:02:59]} 2. Nc3 {[%clk 0:03:00]}  Nc6 {[%clk 0:02:59]} 3. Bc4 {[%clk 0:02:58]}  Bc5 {[%clk 0:02:59]} 4. Qg4 {[%clk 0:02:57]}  Bf8 {[%clk 0:02:57]} 5. Qf3 {[%clk 0:02:51]}  Nf6 {[%clk 0:02:54]} 6. Nge2 {[%clk 0:02:50]}  d6 {[%clk 0:02:49]} 7. d3 {[%clk 0:02:50]}  Be7 {[%clk 0:02:44]} 8. O-O {[%clk 0:02:46]}  O-O {[%clk 0:02:43]} 9. a3 {[%clk 0:02:46]}  Be6 {[%clk 0:02:41]} 10. Nd5 {[%clk 0:02:46]}  Nb8 {[%clk 0:01:51]} 11. Ng3 {[%clk 0:02:28]}  c6 {[%clk 0:01:42]} 12. Nxe7+ {[%clk 0:02:28]}  Qxe7 {[%clk 0:01:42]} 13. Bg5 {[%clk 0:02:28]}  Nbd7 {[%clk 0:01:41]} 14. Nh5 {[%clk 0:02:25]}  Bxc4 {[%clk 0:01:31]} 15. dxc4 {[%clk 0:02:21]}  Qe6 {[%clk 0:01:31]} 16. Nxf6+ {[%clk 0:02:12]}  Nxf6 {[%clk 0:01:30]} 17. Bxf6 {[%clk 0:02:13]}  gxf6 {[%clk 0:01:30]} 18. b3 {[%clk 0:02:04]}  Kh8 {[%clk 0:01:30]} 19. Rad1 {[%clk 0:02:03]}  Rad8 {[%clk 0:01:23]} 20. Rd3 {[%clk 0:02:02]}  b6 {[%clk 0:01:02]} 21. Rfd1 {[%clk 0:01:59]}  Rg8 {[%clk 0:01:01]} 22. Qf5 {[%clk 0:01:31]}  Qe7 {[%clk 0:01:00]} 23. Rh3 {[%clk 0:01:26]}  Rg6 {[%clk 0:00:59]} 24. Rdd3 {[%clk 0:01:23]}  Rdg8 {[%clk 0:00:57]} 25. g3 {[%clk 0:01:14]}  Kg7 {[%clk 0:00:44]} 26. a4 {[%clk 0:01:12]}  Rd8 {[%clk 0:00:35]} 27. Kg2 {[%clk 0:01:07]}  h6 {[%clk 0:00:33]} 28. Rh4 {[%clk 0:01:03]}  Qe6 {[%clk 0:00:30]} 29. Qh5 {[%clk 0:01:00]}  Rh8 {[%clk 0:00:27]} 30. f4 {[%clk 0:00:50]}  exf4 {[%clk 0:00:23]} 31. Rxf4 {[%clk 0:00:50]}  Rg5 {[%clk 0:00:24]} 32. Qf3 {[%clk 0:00:50]}  Rd8 {[%clk 0:00:22]} 33. h4 {[%clk 0:00:39]}  Rg6 {[%clk 0:00:22]} 34. Rf5 {[%clk 0:00:40]}  Rd7 {[%clk 0:00:20]} 35. Qf4 {[%clk 0:00:38]}  Kf8 {[%clk 0:00:18]} 36. h5 {[%clk 0:00:34]}  Rg5 {[%clk 0:00:17]} 37. Rxf6 {[%clk 0:00:35]}  Qe7 {[%clk 0:00:17]} 38. Rxh6 {[%clk 0:00:34]}  Rg8 {[%clk 0:00:17]} 39. Rhxd6 {[%clk 0:00:33]}  Rxd6 {[%clk 0:00:16]} 40. Qxd6 {[%clk 0:00:33]}  Qxd6 {[%clk 0:00:16]} 41. Rxd6 {[%clk 0:00:34]}  Ke7 {[%clk 0:00:16]} 42. Rxc6 {[%clk 0:00:33]} 1-0


[Site "https://www.chess.com"]

[Event "Titled Tuesday Blitz August 09 Early 2022"]
[White "Szpar, Milosz"]
[Black "Chyzy, Jakub"]
[WhiteFideId "1184989"]
[BlackFideId "21806209"]
[WhiteElo "2422"]
[BlackElo "2023"]
[Result "1-0"]
[Round "04"]
[TimeControl "180+1"]
[Date "2022.08.09"]
[WhiteClock "0:00:47"]
[BlackClock "0:00:04"]

1. e4 {[%clk 0:02:44]}  Nf6 {[%clk 0:03:00]} 2. e5 {[%clk 0:02:43]}  Nd5 {[%clk 0:02:58]} 3. d4 {[%clk 0:02:38]}  d6 {[%clk 0:02:56]} 4. Nf3 {[%clk 0:02:36]}  Bg4 {[%clk 0:02:52]} 5. Be2 {[%clk 0:02:35]}  c6 {[%clk 0:02:52]} 6. exd6 {[%clk 0:02:33]}  exd6 {[%clk 0:02:47]} 7. O-O {[%clk 0:02:33]}  Be7 {[%clk 0:02:48]} 8. c4 {[%clk 0:02:32]}  Nb6 {[%clk 0:02:48]} 9. b3 {[%clk 0:02:30]}  O-O {[%clk 0:02:48]} 10. Bb2 {[%clk 0:02:30]}  d5 {[%clk 0:02:48]} 11. c5 {[%clk 0:02:27]}  N6d7 {[%clk 0:02:44]} 12. Nbd2 {[%clk 0:02:27]}  Bf6 {[%clk 0:02:44]} 13. Qc2 {[%clk 0:02:22]}  g6 {[%clk 0:02:41]} 14. Bd3 {[%clk 0:02:21]}  Re8 {[%clk 0:02:32]} 15. h3 {[%clk 0:02:20]}  Bxf3 {[%clk 0:02:31]} 16. Nxf3 {[%clk 0:02:20]}  Nf8 {[%clk 0:02:31]} 17. Rfe1 {[%clk 0:02:19]}  Nbd7 {[%clk 0:02:30]} 18. Rxe8 {[%clk 0:02:16]}  Qxe8 {[%clk 0:02:31]} 19. Re1 {[%clk 0:02:16]}  Qd8 {[%clk 0:02:30]} 20. b4 {[%clk 0:02:16]}  Ne6 {[%clk 0:02:21]} 21. a4 {[%clk 0:02:11]}  b6 {[%clk 0:02:08]} 22. b5 {[%clk 0:01:58]}  bxc5 {[%clk 0:01:56]} 23. bxc6 {[%clk 0:01:58]}  c4 {[%clk 0:01:56]} 24. Bxc4 {[%clk 0:01:49]}  dxc4 {[%clk 0:01:48]} 25. cxd7 {[%clk 0:01:49]}  Qxd7 {[%clk 0:01:49]} 26. d5 {[%clk 0:01:42]}  Bxb2 {[%clk 0:01:19]} 27. dxe6 {[%clk 0:01:41]}  Qb7 {[%clk 0:01:15]} 28. exf7+ {[%clk 0:01:40]}  Kxf7 {[%clk 0:00:55]} 29. Ng5+ {[%clk 0:01:29]}  Kg7 {[%clk 0:00:50]} 30. Ne6+ {[%clk 0:01:27]}  Kh8 {[%clk 0:00:49]} 31. Qxc4 {[%clk 0:01:21]}  Rc8 {[%clk 0:00:46]} 32. Rd1 {[%clk 0:01:06]}  Bf6 {[%clk 0:00:27]} 33. Qf4 {[%clk 0:01:05]}  Qe7 {[%clk 0:00:24]} 34. Qe4 {[%clk 0:00:58]}  Re8 {[%clk 0:00:23]} 35. Re1 {[%clk 0:00:58]}  Qf7 {[%clk 0:00:17]} 36. g3 {[%clk 0:00:57]}  Qe7 {[%clk 0:00:09]} 37. h4 {[%clk 0:00:56]}  Qf7 {[%clk 0:00:08]} 38. Ng5 {[%clk 0:00:53]}  Rxe4 {[%clk 0:00:04]} 39. Nxf7+ {[%clk 0:00:52]}  Kg7 {[%clk 0:00:05]} 40. Rxe4 {[%clk 0:00:53]}  Kxf7 {[%clk 0:00:05]} 41. Rc4 {[%clk 0:00:53]}  Be5 {[%clk 0:00:05]} 42. Kg2 {[%clk 0:00:53]}  Ke6 {[%clk 0:00:04]} 43. Rb4 {[%clk 0:00:47]} 1-0


[Site "https://www.chess.com"]

[Event "Titled Tuesday Blitz August 09 Early 2022"]
[White "Taboas Rodriguez, Daniel"]
[Black "Fernandez Siles, Luis"]
[WhiteFideId "2208466"]
[BlackFideId "2209420"]
[WhiteElo "2429"]
[BlackElo "2211"]
[Result "1-0"]
[Round "04"]
[TimeControl "180+1"]
[Date "2022.08.09"]
[WhiteClock "0:01:44"]
[BlackClock "0:00:13"]

1. d4 {[%clk 0:02:59]}  Nf6 {[%clk 0:02:57]} 2. Nf3 {[%clk 0:02:59]}  g6 {[%clk 0:02:56]} 3. c4 {[%clk 0:02:59]}  Bg7 {[%clk 0:02:55]} 4. Nc3 {[%clk 0:03:00]}  O-O {[%clk 0:02:55]} 5. e4 {[%clk 0:03:00]}  d6 {[%clk 0:02:55]} 6. Be2 {[%clk 0:03:01]}  c5 {[%clk 0:02:55]} 7. d5 {[%clk 0:03:01]}  e6 {[%clk 0:02:51]} 8. O-O {[%clk 0:03:01]}  exd5 {[%clk 0:02:51]} 9. exd5 {[%clk 0:03:01]}  Bg4 {[%clk 0:02:47]} 10. h3 {[%clk 0:03:00]}  Bxf3 {[%clk 0:02:46]} 11. Bxf3 {[%clk 0:03:01]}  a6 {[%clk 0:02:42]} 12. Bf4 {[%clk 0:02:59]}  Ne8 {[%clk 0:02:42]} 13. Qd2 {[%clk 0:02:57]}  Nd7 {[%clk 0:02:41]} 14. Rfe1 {[%clk 0:02:56]}  Ne5 {[%clk 0:02:40]} 15. Be2 {[%clk 0:02:57]}  f5 {[%clk 0:02:23]} 16. Be3 {[%clk 0:02:53]}  Nf6 {[%clk 0:02:15]} 17. f4 {[%clk 0:02:53]}  Nf7 {[%clk 0:02:15]} 18. Bf3 {[%clk 0:02:53]}  Re8 {[%clk 0:01:56]} 19. Bf2 {[%clk 0:02:50]}  Qd7 {[%clk 0:01:51]} 20. a4 {[%clk 0:02:49]}  Rab8 {[%clk 0:01:41]} 21. Rxe8+ {[%clk 0:02:44]}  Rxe8 {[%clk 0:01:41]} 22. Re1 {[%clk 0:02:45]}  Bh6 {[%clk 0:01:26]} 23. g3 {[%clk 0:02:43]}  g5 {[%clk 0:01:18]} 24. Rxe8+ {[%clk 0:02:27]}  Qxe8 {[%clk 0:01:17]} 25. Be3 {[%clk 0:02:27]}  gxf4 {[%clk 0:01:12]} 26. Bxf4 {[%clk 0:02:27]}  Bxf4 {[%clk 0:01:12]} 27. Qxf4 {[%clk 0:02:27]}  Qe1+ {[%clk 0:01:07]} 28. Kg2 {[%clk 0:02:19]}  Ne5 {[%clk 0:01:01]} 29. Qxf5 {[%clk 0:02:19]}  Qd2+ {[%clk 0:00:35]} 30. Be2 {[%clk 0:02:19]}  Qxb2 {[%clk 0:00:25]} 31. Qxf6 {[%clk 0:01:59]}  Qxc3 {[%clk 0:00:24]} 32. Qxd6 {[%clk 0:01:53]}  Nxc4 {[%clk 0:00:20]} 33. Qe6+ {[%clk 0:01:47]}  Kg7 {[%clk 0:00:19]} 34. Qg4+ {[%clk 0:01:46]}  Kf8 {[%clk 0:00:19]} 35. Qxc4 {[%clk 0:01:46]}  Qb2 {[%clk 0:00:13]} 36. Qxc5+ {[%clk 0:01:44]} 1-0


[Site "https://www.chess.com"]

[Event "Titled Tuesday Blitz August 09 Early 2022"]
[White "Tomb, Maroun"]
[Black "Bharath Subramaniyam H"]
[WhiteFideId "5300398"]
[BlackFideId "46634827"]
[WhiteElo "2540"]
[BlackElo "2346"]
[Result "0-1"]
[Round "04"]
[TimeControl "180+1"]
[Date "2022.08.09"]
[WhiteClock "0:00:05"]
[BlackClock "0:00:46"]

1. e4 {[%clk 0:02:54]}  c5 {[%clk 0:02:58]} 2. Ne2 {[%clk 0:02:54]}  d6 {[%clk 0:02:57]} 3. g3 {[%clk 0:02:54]}  Nf6 {[%clk 0:02:56]} 4. Bg2 {[%clk 0:02:54]}  g6 {[%clk 0:02:57]} 5. c3 {[%clk 0:02:54]}  Bg7 {[%clk 0:02:57]} 6. O-O {[%clk 0:02:54]}  O-O {[%clk 0:02:56]} 7. d4 {[%clk 0:02:54]}  cxd4 {[%clk 0:02:55]} 8. cxd4 {[%clk 0:02:55]}  Nc6 {[%clk 0:02:54]} 9. Nbc3 {[%clk 0:02:56]}  Bg4 {[%clk 0:02:51]} 10. f3 {[%clk 0:02:56]}  Bd7 {[%clk 0:02:51]} 11. Be3 {[%clk 0:02:55]}  h5 {[%clk 0:02:43]} 12. Qd2 {[%clk 0:02:55]}  Na5 {[%clk 0:02:38]} 13. b3 {[%clk 0:02:55]}  b5 {[%clk 0:02:39]} 14. e5 {[%clk 0:02:44]}  b4 {[%clk 0:02:33]} 15. Nd1 {[%clk 0:02:10]}  Nd5 {[%clk 0:02:32]} 16. f4 {[%clk 0:02:09]}  e6 {[%clk 0:02:25]} 17. f5 {[%clk 0:02:03]}  dxe5 {[%clk 0:02:12]} 18. fxg6 {[%clk 0:01:38]}  fxg6 {[%clk 0:02:11]} 19. Rxf8+ {[%clk 0:01:35]}  Qxf8 {[%clk 0:02:03]} 20. Bxd5 {[%clk 0:01:34]}  exd5 {[%clk 0:02:02]} 21. dxe5 {[%clk 0:01:34]}  Nc6 {[%clk 0:01:55]} 22. Qxd5+ {[%clk 0:01:30]}  Qf7 {[%clk 0:01:55]} 23. Qxf7+ {[%clk 0:01:23]}  Kxf7 {[%clk 0:01:52]} 24. Nb2 {[%clk 0:01:23]}  Nxe5 {[%clk 0:01:42]} 25. Rf1+ {[%clk 0:01:23]}  Kg8 {[%clk 0:01:42]} 26. Bd4 {[%clk 0:00:55]}  Bh3 {[%clk 0:01:40]} 27. Rf2 {[%clk 0:00:48]}  Rc8 {[%clk 0:01:34]} 28. Nc4 {[%clk 0:00:45]}  Nxc4 {[%clk 0:01:31]} 29. Bxg7 {[%clk 0:00:44]}  Kxg7 {[%clk 0:01:27]} 30. Nf4 {[%clk 0:00:29]}  Ne3 {[%clk 0:01:24]} 31. Re2 {[%clk 0:00:30]}  Rc1+ {[%clk 0:01:20]} 32. Kf2 {[%clk 0:00:28]}  Ng4+ {[%clk 0:01:20]} 33. Kf3 {[%clk 0:00:29]}  Rc3+ {[%clk 0:01:18]} 34. Ke4 {[%clk 0:00:28]}  Nf6+ {[%clk 0:01:17]} 35. Kd4 {[%clk 0:00:26]}  Bf5 {[%clk 0:01:12]} 36. Re7+ {[%clk 0:00:26]}  Kf8 {[%clk 0:01:12]} 37. Rxa7 {[%clk 0:00:26]}  Rc2 {[%clk 0:01:12]} 38. Rb7 {[%clk 0:00:24]}  Rxh2 {[%clk 0:01:08]} 39. Rxb4 {[%clk 0:00:24]}  Rxa2 {[%clk 0:01:08]} 40. Rb7 {[%clk 0:00:24]}  Ne4 {[%clk 0:00:51]} 41. b4 {[%clk 0:00:18]}  Nxg3 {[%clk 0:00:51]} 42. b5 {[%clk 0:00:17]}  Ne2+ {[%clk 0:00:51]} 43. Ke5 {[%clk 0:00:17]}  Nxf4 {[%clk 0:00:50]} 44. Kxf4 {[%clk 0:00:17]}  Rb2 {[%clk 0:00:48]} 45. Kg5 {[%clk 0:00:15]}  Ke8 {[%clk 0:00:48]} 46. b6 {[%clk 0:00:15]}  Kd8 {[%clk 0:00:48]} 47. Rb8+ {[%clk 0:00:08]}  Kd7 {[%clk 0:00:47]} 48. Kh4 {[%clk 0:00:05]}  Kc6 {[%clk 0:00:46]} 0-1


[Site "https://www.chess.com"]

[Event "Titled Tuesday Blitz August 09 Early 2022"]
[White "Vagman, Roy"]
[Black "Rohith Krishna S"]
[WhiteFideId "2828995"]
[BlackFideId "46617051"]
[WhiteElo "1956"]
[BlackElo "2118"]
[Result "0-1"]
[Round "04"]
[TimeControl "180+1"]
[Date "2022.08.09"]
[WhiteClock "0:00:07"]
[BlackClock "0:01:45"]

1. e4 {[%clk 0:03:00]}  c5 {[%clk 0:02:59]} 2. Nf3 {[%clk 0:03:00]}  d6 {[%clk 0:02:58]} 3. d4 {[%clk 0:02:56]}  cxd4 {[%clk 0:02:59]} 4. Nxd4 {[%clk 0:02:56]}  Nf6 {[%clk 0:02:59]} 5. Nc3 {[%clk 0:02:56]}  a6 {[%clk 0:02:59]} 6. h3 {[%clk 0:02:47]}  e5 {[%clk 0:02:58]} 7. Nb3 {[%clk 0:02:47]}  h6 {[%clk 0:02:55]} 8. g4 {[%clk 0:02:47]}  Be6 {[%clk 0:02:53]} 9. Bg2 {[%clk 0:02:48]}  Be7 {[%clk 0:02:52]} 10. Be3 {[%clk 0:02:49]}  Nbd7 {[%clk 0:02:52]} 11. Nd5 {[%clk 0:02:46]}  Bxd5 {[%clk 0:02:51]} 12. exd5 {[%clk 0:02:47]}  a5 {[%clk 0:02:51]} 13. a4 {[%clk 0:02:44]}  b6 {[%clk 0:02:50]} 14. O-O {[%clk 0:02:38]}  Nc5 {[%clk 0:02:51]} 15. Nxc5 {[%clk 0:02:38]}  bxc5 {[%clk 0:02:50]} 16. Qd3 {[%clk 0:02:35]}  Nd7 {[%clk 0:02:49]} 17. f4 {[%clk 0:02:23]}  O-O {[%clk 0:02:43]} 18. f5 {[%clk 0:01:58]}  Bg5 {[%clk 0:02:42]} 19. Bf2 {[%clk 0:01:53]}  Rb8 {[%clk 0:02:35]} 20. b3 {[%clk 0:01:52]}  Rb4 {[%clk 0:02:35]} 21. c4 {[%clk 0:01:39]}  Re8 {[%clk 0:02:32]} 22. Be1 {[%clk 0:01:23]}  Rb7 {[%clk 0:02:30]} 23. Kh1 {[%clk 0:01:12]}  Qf6 {[%clk 0:02:11]} 24. Bxa5 {[%clk 0:01:05]}  e4 {[%clk 0:02:05]} 25. Bxe4 {[%clk 0:00:59]}  Ne5 {[%clk 0:02:06]} 26. Qc2 {[%clk 0:00:55]}  Be3 {[%clk 0:02:06]} 27. Bg2 {[%clk 0:00:49]}  Nxg4 {[%clk 0:01:59]} 28. Bc3 {[%clk 0:00:36]}  Qh4 {[%clk 0:01:55]} 29. a5 {[%clk 0:00:33]}  Qg3 {[%clk 0:01:47]} 30. Bf3 {[%clk 0:00:07]}  Qxh3+ {[%clk 0:01:45]} 0-1


[Site "https://www.chess.com"]

[Event "Titled Tuesday Blitz August 09 Early 2022"]
[White "Vovk, Orest"]
[Black "Buscar, Michael"]
[WhiteFideId "14113490"]
[BlackFideId "2603616"]
[WhiteElo "2203"]
[BlackElo "2010"]
[Result "1-0"]
[Round "04"]
[TimeControl "180+1"]
[Date "2022.08.09"]
[WhiteClock "0:01:30"]
[BlackClock "0:01:35"]

1. h3 {[%clk 0:02:56]}  d5 {[%clk 0:02:58]} 2. e4 {[%clk 0:02:56]}  h6 {[%clk 0:02:57]} 3. Nc3 {[%clk 0:02:47]}  d4 {[%clk 0:02:53]} 4. Nce2 {[%clk 0:02:47]}  g6 {[%clk 0:02:52]} 5. Ng3 {[%clk 0:02:46]}  Bg7 {[%clk 0:02:52]} 6. Bc4 {[%clk 0:02:46]}  e6 {[%clk 0:02:46]} 7. Nf3 {[%clk 0:02:46]}  Ne7 {[%clk 0:02:45]} 8. d3 {[%clk 0:02:46]}  a6 {[%clk 0:02:43]} 9. a3 {[%clk 0:02:46]}  c5 {[%clk 0:02:41]} 10. Bf4 {[%clk 0:02:45]}  b5 {[%clk 0:02:40]} 11. Ba2 {[%clk 0:02:44]}  g5 {[%clk 0:02:35]} 12. Bd2 {[%clk 0:02:40]}  Ng6 {[%clk 0:02:36]} 13. Nh5 {[%clk 0:02:37]}  O-O {[%clk 0:02:28]} 14. h4 {[%clk 0:02:29]}  g4 {[%clk 0:02:11]} 15. Nh2 {[%clk 0:02:18]}  Qxh4 {[%clk 0:02:10]} 16. Qxg4 {[%clk 0:02:15]}  e5 {[%clk 0:02:01]} 17. Qxh4 {[%clk 0:02:11]}  Nxh4 {[%clk 0:02:01]} 18. Nxg7 {[%clk 0:02:06]}  Kxg7 {[%clk 0:02:00]} 19. Bxh6+ {[%clk 0:01:56]}  Kxh6 {[%clk 0:01:55]} 20. Nf3 {[%clk 0:01:56]}  f5 {[%clk 0:01:41]} 21. Rxh4+ {[%clk 0:01:55]}  Kg6 {[%clk 0:01:39]} 22. Nxe5+ {[%clk 0:01:54]}  Kg5 {[%clk 0:01:36]} 23. f4+ {[%clk 0:01:31]}  Kxh4 {[%clk 0:01:35]} 24. Kf2 {[%clk 0:01:30]} 1-0


[Site "https://www.chess.com"]